bitfinex-derivatives/quotes_BTCF0:USTF0_20210406
["timestamp","ask_amount","ask_price","bid_price","bid_amount"]
[1617723638481,1.10725655,57844.0,57840.0,0.30209689]
[1617723638680,0.10725655,57844.0,57842.0,2.9905]
[1617723639084,0.10725655,57844.0,57842.0,3.29257966]
[1617723639481,0.10725655,57844.0,57843.0,0.30202453]
[1617723640181,0.10725655,57844.0,57843.0,0.40928108]
[1617723643084,0.10725655,57844.0,57843.0,0.10725655]
[1617723644086,0.10725655,57844.0,57841.0,0.30177374]
[1617723646590,0.10725655,57844.0,57842.0,0.30172374]
[1617723646790,0.10725655,57844.0,57843.0,2.7915]
[1617723647194,0.10725655,57844.0,57843.0,3.45679964]
[1617723647493,0.10725655,57844.0,57843.0,4.05290093]
[1617723648291,0.10725655,57844.0,57843.0,4.16015748]
[1617723648994,0.10725655,57844.0,57843.0,4.66198286]
[1617723649195,0.10725655,57844.0,57843.0,1.87048286]
[1617723649496,0.10725655,57844.0,57843.0,1.76322631]
[1617723649894,0.10725655,57844.0,57843.0,1.6711528]
[1617723650795,0.10725655,57844.0,57843.0,1.60977046]
[1617723650995,0.10725655,57844.0,57843.0,1.67115099]
[1617723651396,0.10725655,57844.0,57843.0,1.60977046]
[1617723653596,0.10623357,57844.0,57843.0,1.60977046]
[1617723656702,0.10623357,57844.0,57843.0,1.66207046]
[1617723656902,2.814,57845.0,57843.0,1.66207046]
[1617723657103,1.0,57862.0,57843.0,1.72344684]
[1617723657306,1.0,57864.0,57843.0,1.72344684]
[1617723657504,1.0,57864.0,57861.0,0.65961146]
[1617723657905,1.0,57864.0,57861.0,0.78785146]
[1617723658108,1.0,57864.0,57863.0,0.29968441]
[1617723658306,1.10725655,57864.0,57863.0,0.29968441]
[1617723658905,1.10725655,57864.0,57863.0,0.36106079]
[1617723659406,1.10725655,57864.0,57863.0,0.29968441]
[1617723659706,1.10725655,57864.0,57863.0,0.36106093]
[1617723660106,1.10725655,57864.0,57863.0,0.29968441]
[1617723661909,1.10725655,57864.0,57863.0,0.51141116]
[1617723662612,0.10725655,57864.0,57863.0,0.51141116]
[1617723662811,0.10725655,57864.0,57863.0,0.86977215]
[1617723664113,1.10725655,57864.0,57863.0,0.51141116]
[1617723664713,1.10725655,57864.0,57863.0,0.87006633]
[1617723664714,1.41317465,57864.0,57863.0,0.87006633]
[1617723665915,0.41317465,57864.0,57863.0,0.87006633]
[1617723666114,1.41317465,57864.0,57863.0,0.87006633]
[1617723667620,1.10725655,57864.0,57863.0,0.87006633]
[1617723668016,0.11755214,57864.0,57863.0,0.87006633]
[1617723668517,0.10725655,57864.0,57863.0,0.97732288]
[1617723669118,0.10725655,57864.0,57863.0,1.41569933]
[1617723669519,0.10725655,57864.0,57863.0,1.91380562]
[1617723670320,0.4783,57866.0,57863.0,1.91380562]
[1617723670922,0.4783,57866.0,57865.0,1.59270844]
[1617723671823,0.4783,57866.0,57865.0,1.64460844]
[1617723672224,0.4783,57866.0,57865.0,1.20825116]
[1617723672424,0.4783,57866.0,57865.0,1.15635116]
[1617723673226,0.4783,57866.0,57865.0,1.09498705]
[1617723673626,0.4783,57866.0,57865.0,1.15635151]
[1617723673925,0.4783,57866.0,57865.0,1.09498705]
[1617723674829,0.10725655,57870.0,57865.0,1.09498705]
[1617723675330,0.10725655,57870.0,57869.0,1.08963848]
[1617723675733,0.10725655,57870.0,57869.0,0.65378309]
[1617723676232,0.10725655,57870.0,57869.0,4.53955724]
[1617723676531,0.10725655,57870.0,57869.0,4.64681379]
[1617723676932,0.01025594,57885.0,57869.0,1.19661379]
[1617723677132,2.49,57883.0,57869.0,1.35001404]
[1617723677635,2.49,57883.0,57878.0,0.39992252]
[1617723677832,0.01025594,57886.0,57878.0,0.39992252]
[1617723678032,0.50115509,57890.0,57881.0,0.29680764]
[1617723678632,0.50115509,57890.0,57884.0,0.10725655]
[1617723678832,0.4909,57890.0,57884.0,0.10725655]
[1617723680236,0.01025501,57892.0,57885.0,0.0511]
[1617723680433,0.01025501,57892.0,57891.0,2.70185655]
[1617723680634,0.01025476,57895.0,57891.0,2.80769655]
[1617723681035,0.01025438,57898.0,57891.0,2.80769655]
[1617723681636,0.01025481,57896.0,57891.0,2.80769655]
[1617723682036,0.01025419,57897.0,57891.0,2.80769655]
[1617723682540,0.10725655,57894.0,57891.0,0.21309655]
[1617723682743,0.10725655,57894.0,57891.0,0.10725655]
[1617723684041,0.10725655,57894.0,57880.0,0.29543026]
[1617723684242,1.0,57892.0,57879.0,0.29566912]
[1617723684442,0.10725655,57880.0,57879.0,0.29566912]
[1617723684645,0.10725655,57880.0,57875.0,0.29614481]
[1617723685144,0.10725655,57880.0,57870.0,0.10725655]
[1617723685145,0.10725655,57880.0,57873.0,0.29628853]
[1617723686149,0.10725655,57880.0,57874.0,0.45712707]
[1617723686550,0.10725655,57880.0,57879.0,0.10725655]
[1617723686847,0.10725655,57880.0,57879.0,2.84705655]
[1617723687449,0.10725655,57880.0,57879.0,2.7398]
[1617723688549,0.10725655,57880.0,57876.0,0.10725655]
[1617723688753,0.10725655,57880.0,57872.0,0.29636879]
[1617723688754,1.10725655,57880.0,57872.0,0.29636879]
[1617723688949,1.0,57877.0,57871.0,0.29643676]
[1617723689249,1.0,57877.0,57868.0,0.35572411]
[1617723689250,0.10725655,57880.0,57879.0,3.6785]
[1617723689449,1.10725655,57880.0,57879.0,3.6785]
[1617723689849,0.10725655,57880.0,57879.0,3.6785]
[1617723693159,1.10725655,57880.0,57876.0,0.10725655]
[1617723693357,1.25367655,57880.0,57876.0,0.10725655]
[1617723693656,1.25367655,57880.0,57869.0,0.2961223]
[1617723694457,1.0,57875.0,57868.0,0.29657164]
[1617723694759,0.10725655,57869.0,57868.0,0.29657164]
[1617723696560,0.10725655,57869.0,57868.0,0.40382819]
[1617723698062,0.20419655,57869.0,57868.0,0.76030976]
[1617723698464,0.20419655,57869.0,57868.0,0.10725655]
[1617723698662,0.20419655,57869.0,57862.0,0.10725655]
[1617723698863,0.20419655,57869.0,57868.0,0.65363027]
[1617723699264,0.09694,57869.0,57868.0,0.65363027]
[1617723699464,0.01025899,57880.0,57868.0,0.65363027]
[1617723699665,0.01025899,57880.0,57879.0,3.4395]
[1617723699964,0.30482411,57881.0,57879.0,3.4395]
[1617723700165,0.01025861,57883.0,57879.0,3.4395]
[1617723700666,0.01025825,57888.0,57882.0,0.10725655]
[1617723700865,0.01025825,57888.0,57882.0,0.23909655]
[1617723701168,0.01025802,57890.0,57882.0,0.53540526]
[1617723701567,1.0,57890.0,57884.0,0.29620746]
[1617723701865,1.0,57888.0,57884.0,0.29620746]
[1617723702067,0.4765,57891.0,57881.0,0.29635412]
[1617723702068,1.0,57885.0,57881.0,0.29635412]
[1617723702466,1.0,57886.0,57881.0,0.29635412]
[1617723702666,0.10725655,57882.0,57880.0,0.29641095]
[1617723703768,0.01025822,57888.0,57880.0,0.29641095]
[1617723703967,0.3048008,57889.0,57880.0,0.29641095]
[1617723703968,0.01025783,57889.0,57881.0,3.6226924]
[1617723704369,0.0102577,57894.0,57886.0,0.29613042]
[1617723704569,0.10725655,57887.0,57886.0,0.40338697]
[1617723704770,0.10725655,57887.0,57886.0,0.10725655]
[1617723705172,0.10725655,57887.0,57886.0,0.81980288]
[1617723705571,0.10725655,57887.0,57886.0,0.87100288]
[1617723707070,0.10725655,57887.0,57886.0,0.15845655]
[1617723707571,0.10725655,57887.0,57886.0,0.81023253]
[1617723709475,0.10725655,57887.0,57886.0,4.15707319]
[1617723709875,0.10725655,57887.0,57886.0,4.24909184]
[1617723710673,0.01028074,57896.0,57886.0,4.24909184]
[1617723711074,0.01028074,57896.0,57895.0,0.29684718]
[1617723712277,0.01028074,57896.0,57895.0,0.34904718]
[1617723712477,0.01028074,57896.0,57895.0,0.29684718]
[1617723712676,0.11753729,57896.0,57895.0,0.40410373]
[1617723712977,0.41272521,57896.0,57895.0,0.40410373]
[1617723713378,0.41272521,57896.0,57895.0,0.54805373]
[1617723713879,0.11753707,57896.0,57895.0,0.54805373]
[1617723715378,0.412725,57896.0,57895.0,0.54805373]
[1617723718081,0.412725,57896.0,57895.0,0.25120655]
[1617723718280,0.412725,57896.0,57895.0,0.10725655]
[1617723718682,0.464225,57896.0,57895.0,0.10725655]
[1617723718882,0.412725,57896.0,57895.0,0.10725655]
[1617723720084,0.412725,57896.0,57895.0,0.21220655]
[1617723720585,0.412725,57896.0,57895.0,0.50884373]
[1617723723186,1.463825,57896.0,57895.0,0.50884373]
[1617723723387,0.412725,57896.0,57895.0,0.40158718]
[1617723723587,1.412725,57896.0,57895.0,0.40158718]
[1617723723788,1.7792303,57896.0,57893.0,0.29693454]
[1617723724187,1.7792303,57896.0,57891.0,0.29707936]
[1617723724588,1.7792303,57896.0,57888.0,0.35649523]
[1617723724589,0.30544833,57892.0,57890.0,0.29712118]
[1617723725086,1.0,57891.0,57890.0,0.29712118]
[1617723725288,1.305445,57891.0,57890.0,0.29712118]
[1617723726189,1.305445,57891.0,57889.0,0.29743825]
[1617723726488,0.305445,57891.0,57889.0,0.29743825]
[1617723726688,0.10725655,57890.0,57889.0,0.29743825]
[1617723726888,1.10725655,57890.0,57889.0,0.29743825]
[1617723727090,1.41270184,57890.0,57889.0,0.29743825]
[1617723727888,1.77941135,57890.0,57889.0,0.29743825]
[1617723728088,1.77941135,57890.0,57888.0,0.29738556]
[1617723728490,1.0,57889.0,57888.0,0.29738556]
[1617723728893,1.88041062,57889.0,57888.0,0.29738556]
[1617723729291,1.88041062,57889.0,57887.0,0.29742412]
[1617723729890,0.30563992,57888.0,57887.0,0.29742412]
[1617723730492,1.30563992,57888.0,57887.0,0.29742412]
[1617723731094,1.67239355,57888.0,57887.0,0.29742412]
[1617723733497,0.67239355,57888.0,57887.0,3.84822412]
[1617723733899,0.30579134,57889.0,57887.0,4.2050775]
[1617723734299,0.30579134,57889.0,57887.0,0.6542775]
[1617723734502,0.36692786,57889.0,57888.0,0.35883665]
[1617723734903,3.07555655,57890.0,57888.0,0.29748387]
[1617723735404,0.47419534,57890.0,57889.0,0.41842217]
[1617723735804,0.10725655,57890.0,57889.0,0.77533674]
[1617723736305,0.41316451,57890.0,57889.0,0.83669123]
[1617723736505,1.41316451,57890.0,57889.0,0.83669123]
[1617723736706,1.78024211,57890.0,57889.0,0.83669123]
[1617723737106,1.78024211,57890.0,57889.0,0.41842217]
[1617723737409,1.78024211,57890.0,57889.0,0.29752217]
[1617723740011,1.78024211,57890.0,57889.0,0.6541482]
[1617723740708,1.78024211,57890.0,57889.0,0.29752217]
[1617723740908,1.78024211,57890.0,57889.0,0.35887932]
[1617723741307,1.78024211,57890.0,57889.0,0.29752217]
[1617723748319,1.91268211,57890.0,57889.0,0.29752217]
[1617723749119,1.91268211,57890.0,57889.0,0.28922217]
[1617723749318,1.60677415,57890.0,57889.0,0.28922217]
[1617723749920,2.0555946,57890.0,57886.0,3.6005]
[1617723750120,1.9231546,57890.0,57886.0,3.6005]
[1617723750420,0.21919707,57889.0,57887.0,0.06135916]
[1617723751021,0.36716152,57888.0,57887.0,0.06135916]
[1617723751522,0.36716152,57888.0,57887.0,0.41814894]
[1617723751923,1.36716152,57888.0,57887.0,0.41814894]
[1617723752122,1.0,57888.0,57887.0,0.41814894]
[1617723753923,1.36762782,57888.0,57887.0,0.85441862]
[1617723754123,0.36762782,57888.0,57887.0,0.85441862]
[1617723754324,0.36762137,57889.0,57887.0,0.85441862]
[1617723754724,0.10725655,57890.0,57887.0,0.85441862]
[1617723754725,1.0,57888.0,57887.0,0.06135916]
[1617723755326,1.0,57888.0,57887.0,0.85395476]
[1617723755728,1.36763073,57888.0,57887.0,0.85395476]
[1617723756227,1.36763073,57888.0,57887.0,0.41802718]
[1617723756629,1.51022073,57888.0,57887.0,0.41802718]
[1617723757231,1.95952546,57888.0,57887.0,0.41802718]
[1617723757634,1.51022073,57888.0,57887.0,0.41802718]
[1617723761033,0.51022073,57888.0,57887.0,0.41802718]
[1617723761236,0.36763073,57888.0,57887.0,0.41802718]
[1617723761635,0.36763073,57888.0,57887.0,0.85394846]
[1617723762135,0.47488412,57890.0,57887.0,0.85394846]
[1617723762637,0.10725655,57890.0,57889.0,0.79214741]
[1617723762938,0.10725655,57890.0,57889.0,0.89940396]
[1617723763336,0.10725655,57890.0,57889.0,0.96075769]
[1617723764736,0.47488871,57890.0,57889.0,0.96075769]
[1617723765539,0.68882586,57890.0,57889.0,0.52507661]
[1617723765936,0.68882586,57890.0,57889.0,0.96073086]
[1617723766138,1.68882586,57890.0,57889.0,0.96073086]
[1617723766738,0.68882586,57890.0,57889.0,0.96073086]
[1617723766938,0.68882586,57890.0,57889.0,0.52507661]
[1617723767339,0.68882586,57890.0,57889.0,0.96077905]
[1617723768339,1.68882586,57890.0,57889.0,0.96077905]
[1617723769139,1.68882586,57890.0,57889.0,0.52507661]
[1617723769739,1.68882586,57890.0,57889.0,0.16861028]
[1617723770146,1.68882586,57890.0,57889.0,0.52534262]
[1617723770441,1.68882586,57890.0,57889.0,0.46398889]
[1617723770743,1.68882586,57890.0,57889.0,0.52534275]
[1617723771843,2.34402586,57890.0,57889.0,0.4180862]
[1617723772044,5.89712586,57890.0,57889.0,0.4180862]
[1617723772247,11.94822586,57890.0,57889.0,0.4180862]
[1617723772446,11.94822586,57890.0,57889.0,0.3900862]
[1617723772646,12.90825683,57890.0,57878.0,0.43667323]
[1617723772848,13.26704134,57890.0,57878.0,0.43667323]
[1617723773048,0.10725655,57879.0,57878.0,0.43667323]
[1617723773252,0.10725655,57879.0,57875.0,0.43677824]
[1617723773450,1.10725655,57879.0,57875.0,0.43677824]
[1617723773650,0.24544429,57878.0,57877.0,0.43656136]
[1617723775151,0.10725655,57879.0,57877.0,0.43656136]
[1617723775351,0.10725655,57879.0,57877.0,0.59070136]
[1617723776252,0.10725655,57879.0,57878.0,0.49768834]
[1617723776651,1.10725655,57879.0,57878.0,0.49768834]
[1617723777352,1.10725655,57879.0,57878.0,0.43632887]
[1617723777852,1.10725655,57879.0,57878.0,0.49768781]
[1617723778151,1.10725655,57879.0,57878.0,0.62646781]
[1617723778551,0.10725655,57879.0,57878.0,0.62646781]
[1617723778955,0.44970822,57884.0,57878.0,0.62646781]
[1617723779152,0.44970822,57884.0,57878.0,3.58066781]
[1617723779452,0.00521105,57880.0,57878.0,4.37532581]
[1617723779752,0.01031993,57881.0,57879.0,0.1533893]
[1617723780152,0.3066396,57881.0,57880.0,1.23229092]
[1617723781457,1.3066396,57881.0,57880.0,1.23229092]
[1617723781856,1.3066396,57881.0,57880.0,0.7967583]
[1617723782258,1.55207897,57881.0,57880.0,0.7967583]
[1617723782668,1.55207897,57881.0,57880.0,0.9327183]
[1617723782857,0.55207897,57881.0,57880.0,4.46815942]
[1617723783057,0.55207897,57881.0,57880.0,4.57541597]
[1617723783360,0.3066396,57881.0,57880.0,1.62839155]
[1617723783759,0.3066396,57881.0,57880.0,1.03997285]
[1617723784060,0.3066396,57881.0,57880.0,4.63777285]
[1617723784258,0.3066396,57881.0,57880.0,5.1340365]
[1617723784662,0.3066396,57881.0,57880.0,5.22607049]
[1617723785764,1.3066396,57881.0,57880.0,4.62255029]
[1617723786462,1.55207377,57881.0,57880.0,4.62255029]
[1617723787063,2.00180672,57881.0,57880.0,4.62255029]
[1617723788366,0.55207377,57881.0,57880.0,4.62255029]
[1617723788566,1.55207377,57881.0,57880.0,4.62255029]
[1617723788869,1.3066396,57881.0,57880.0,4.62255029]
[1617723789469,1.55207683,57881.0,57880.0,4.62255029]
[1617723790070,1.55207683,57881.0,57880.0,1.00335029]
[1617723790271,1.69653683,57881.0,57880.0,0.84085029]
[1617723790480,1.69653683,57881.0,57880.0,0.70489029]
[1617723791071,1.69653683,57881.0,57880.0,0.55149942]
[1617723791673,0.69653683,57881.0,57880.0,0.55149942]
[1617723791873,1.69653683,57881.0,57880.0,0.55149942]
[1617723793376,1.69653683,57881.0,57880.0,0.50689942]
[1617723793577,1.69653683,57881.0,57880.0,0.56825981]
[1617723794082,1.69653683,57881.0,57880.0,0.2981349]
[1617723794779,1.69653683,57881.0,57869.0,0.06136012]
[1617723795179,1.69653683,57881.0,57880.0,0.35904297]
[1617723795580,1.14446,57881.0,57880.0,0.29768241]
[1617723796080,1.45099374,57881.0,57880.0,0.29768241]
[1617723796282,0.30653374,57881.0,57880.0,0.29768241]
[1617723796483,1.30653374,57881.0,57880.0,0.29768241]
[1617723797183,1.41379029,57881.0,57880.0,0.29768241]
[1617723797885,1.78160677,57881.0,57880.0,0.65478443]
[1617723798687,3.28160677,57881.0,57880.0,0.62858443]
[1617723799086,3.28160677,57881.0,57880.0,0.68994792]
[1617723799587,3.28160677,57881.0,57880.0,0.62858443]
[1617723800688,3.43545677,57881.0,57880.0,0.62858443]
[1617723804395,3.43545677,57881.0,57880.0,0.27148241]
[1617723804692,3.43545677,57881.0,57880.0,0.3328488]
[1617723805192,3.43545677,57881.0,57880.0,0.27148241]
[1617723805595,3.43545677,57881.0,57876.0,0.35738976]
[1617723805994,0.2454682,57880.0,57877.0,0.35730437]
[1617723806293,0.2454682,57880.0,57877.0,0.34240437]
[1617723806494,0.2454682,57880.0,57878.0,0.06136669]
[1617723807094,0.2454682,57880.0,57877.0,0.34240437]
[1617723807495,0.2454682,57880.0,57866.0,0.49626983]
[1617723807995,0.00520206,57871.0,57866.0,0.49626983]
[1617723808595,1.0,57867.0,57866.0,0.49626983]
[1617723808797,1.0,57867.0,57858.0,0.55578697]
[1617723809195,1.0,57867.0,57861.0,0.10725655]
[1617723809398,1.0,57867.0,57866.0,0.49618731]
[1617723810396,1.0,57869.0,57866.0,0.49618731]
[1617723811399,1.0,57868.0,57867.0,0.49632372]
[1617723811597,1.0,57868.0,57867.0,0.55769096]
[1617723811798,0.00520209,57871.0,57867.0,0.55769096]
[1617723812100,1.0,57868.0,57867.0,0.49632372]
[1617723812599,1.0,57868.0,57866.0,0.49644633]
[1617723813200,1.0,57868.0,57865.0,0.4965418]
[1617723813400,0.10725655,57866.0,57865.0,0.4965418]
[1617723814001,1.10725655,57866.0,57865.0,0.93356056]
[1617723814502,1.10725655,57866.0,57865.0,0.43701876]
[1617723815101,1.10725655,57866.0,57865.0,3.59738339]
[1617723815301,0.10725655,57866.0,57865.0,3.59738339]
[1617723815903,0.10725655,57866.0,57865.0,3.75080439]
[1617723819007,1.10725655,57866.0,57865.0,1.08700439]
[1617723819607,1.10725655,57866.0,57865.0,0.93358339]
[1617723819911,1.10725655,57866.0,57865.0,0.49838776]
[1617723820409,1.10725655,57866.0,57865.0,0.43701876]
[1617723820908,0.10725655,57866.0,57865.0,0.43701876]
[1617723821310,1.10725655,57866.0,57865.0,0.43701876]
[1617723823212,1.11245859,57866.0,57865.0,0.43701876]
[1617723823513,1.10725655,57866.0,57865.0,0.43701876]
[1617723824417,4.37985655,57866.0,57865.0,0.43701876]
[1617723825017,4.87985655,57866.0,57865.0,0.43701876]
[1617723825215,5.87985655,57866.0,57865.0,0.43701876]
[1617723825715,5.87985655,57866.0,57865.0,0.06138017]
[1617723825916,5.87985655,57866.0,57865.0,0.05218017]
[1617723826317,5.87985655,57866.0,57853.0,0.49911749]
[1617723826820,1.0,57854.0,57852.0,0.49921795]
[1617723827417,0.10725655,57853.0,57852.0,0.49921795]
[1617723827720,0.10725655,57853.0,57846.0,3.5663]
[1617723828317,0.10725655,57853.0,57852.0,0.50000087]
[1617723829320,0.10725655,57853.0,57852.0,0.2995354]
[1617723829620,1.10725655,57853.0,57852.0,0.36091577]
[1617723830028,1.10725655,57853.0,57852.0,0.2995354]
[1617723830419,0.10725655,57853.0,57852.0,0.2995354]
[1617723830621,1.10725655,57853.0,57852.0,0.2995354]
[1617723831521,4.55495655,57853.0,57852.0,0.65941781]
[1617723833325,3.55495655,57853.0,57852.0,0.65941781]
[1617723833724,4.55495655,57853.0,57852.0,0.65941781]
[1617723834024,3.55495655,57853.0,57852.0,0.65941781]
[1617723834225,4.55495655,57853.0,57852.0,0.65941781]
[1617723837129,1.10725655,57853.0,57852.0,0.65941781]
[1617723839233,0.10725655,57853.0,57852.0,0.65941781]
[1617723839433,1.10725655,57853.0,57852.0,0.65941781]
[1617723842734,1.10725655,57853.0,57852.0,0.65391781]
[1617723845640,1.21956655,57853.0,57852.0,0.65391781]
[1617723847139,1.22170452,57853.0,57852.0,0.65391781]
[1617723847840,1.21956655,57853.0,57852.0,0.65391781]
[1617723848645,4.73706655,57853.0,57852.0,0.65391781]
[1617723849144,4.73706655,57853.0,57852.0,0.2940354]
[1617723850050,4.73706655,57853.0,57848.0,0.36157726]
[1617723850343,4.73706655,57853.0,57843.0,0.44192777]
[1617723850344,0.01028117,57849.0,57846.0,0.36169067]
[1617723850844,0.00213768,57847.0,57846.0,0.36169067]
[1617723851145,1.00213768,57847.0,57846.0,0.36169067]
[1617723851642,1.10939423,57847.0,57846.0,0.36169067]
[1617723853047,1.112451,57847.0,57846.0,0.36169067]
[1617723853545,1.10939545,57847.0,57846.0,0.36169067]
[1617723854951,1.112451,57847.0,57846.0,0.36169067]
[1617723855346,1.10939543,57847.0,57846.0,0.36169067]
[1617723856249,1.10939543,57847.0,57846.0,0.42308856]
[1617723856746,1.10939543,57847.0,57846.0,0.36169067]
[1617723857047,1.10725655,57847.0,57846.0,0.42308857]
[1617723857448,0.10725655,57847.0,57846.0,0.36169067]
[1617723857848,0.10725655,57847.0,57846.0,0.48067067]
[1617723858052,0.10939541,57847.0,57846.0,0.48067067]
[1617723858449,0.10939541,57847.0,57846.0,3.74726725]
[1617723858450,0.10725655,57847.0,57846.0,3.74726725]
[1617723858853,0.10725655,57847.0,57846.0,4.18970999]
[1617723859450,0.10725655,57847.0,57846.0,1.0766013]
[1617723860453,0.10725655,57847.0,57846.0,0.98450999]
[1617723863556,1.10725655,57847.0,57846.0,0.98450999]
[1617723866261,1.10725655,57847.0,57846.0,0.97890999]
[1617723866463,1.10725655,57847.0,57846.0,0.53646725]
[1617723866761,1.10725655,57847.0,57846.0,0.41748725]
[1617723867361,1.10725655,57847.0,57846.0,0.35609067]
[1617723873169,1.10939527,57847.0,57846.0,0.65795265]
[1617723875574,1.10725655,57847.0,57846.0,0.77161265]
[1617723875975,1.10725655,57847.0,57846.0,0.83300958]
[1617723876375,1.10725655,57847.0,57846.0,1.27565126]
[1617723877975,1.10725655,57847.0,57846.0,1.78034887]
[1617723878376,0.10725655,57847.0,57846.0,1.78034887]
[1617723878677,0.10940077,57847.0,57846.0,5.41994887]
[1617723878976,0.00214422,57847.0,57846.0,7.11994887]
[1617723879379,0.00214397,57854.0,57846.0,7.77670416]
[1617723879679,0.10725655,57857.0,57853.0,0.10725655]
[1617723879875,0.00214377,57859.0,57854.0,0.2]
[1617723880278,0.00214375,57860.0,57856.0,1.24832955]
[1617723880879,0.00214375,57861.0,57859.0,1.24797929]
[1617723881079,0.00214375,57861.0,57859.0,1.38683929]
[1617723881279,0.00214371,57862.0,57860.0,1.24775978]
[1617723881678,0.00214371,57862.0,57861.0,0.10725655]
[1617723881981,0.00520625,57863.0,57861.0,0.10725655]
[1617723881982,0.00214368,57863.0,57862.0,0.2]
[1617723882281,0.00214355,57866.0,57862.0,0.2]
[1617723882880,0.3063233,57869.0,57862.0,0.2]
[1617723882881,0.00214349,57869.0,57865.0,1.2461025]
[1617723883079,0.00214349,57869.0,57866.0,0.2]
[1617723883280,0.41357192,57872.0,57868.0,0.74129532]
[1617723883281,0.10725655,57872.0,57868.0,0.74129532]
[1617723883681,0.00213762,57877.0,57871.0,0.84854864]
[1617723883880,0.00213762,57877.0,57871.0,0.96870864]
[1617723884081,0.10939415,57878.0,57876.0,0.30044591]
[1617723884681,0.10939415,57878.0,57877.0,0.30053339]
[1617723885681,0.10939415,57878.0,57877.0,0.40778994]
[1617723886081,0.10939415,57878.0,57877.0,0.30053339]
[1617723886082,0.10725655,57878.0,57877.0,0.30053339]
[1617723886280,1.10725655,57878.0,57877.0,0.30053339]
[1617723886481,1.41274331,57878.0,57877.0,0.30053339]
[1617723887282,0.41274331,57878.0,57877.0,0.30053339]
[1617723887581,1.41274331,57878.0,57877.0,0.30053339]
[1617723888784,1.41274331,57878.0,57876.0,0.30112207]
[1617723889083,1.54834331,57878.0,57876.0,0.30112207]
[1617723889292,1.30532261,57877.0,57874.0,0.3009878]
[1617723889691,1.30532261,57877.0,57852.0,0.5618439]
[1617723889692,1.0,57875.0,57873.0,0.30104717]
[1617723889987,1.30533293,57875.0,57873.0,0.30104717]
[1617723890383,1.30533293,57875.0,57858.0,0.10725655]
[1617723890384,0.30533225,57874.0,57872.0,0.30117035]
[1617723890883,0.01027622,57873.0,57872.0,0.30117035]
[1617723891485,1.30534081,57873.0,57871.0,0.30116261]
[1617723891887,0.10725655,57872.0,57871.0,0.30116261]
[1617723892490,0.10725655,57872.0,57870.0,0.30119473]
[1617723892491,0.41259628,57872.0,57870.0,0.30119473]
[1617723893389,0.0102764,57871.0,57870.0,0.30119473]
[1617723893990,1.0102764,57871.0,57870.0,0.30119473]
[1617723896892,0.00213664,57871.0,57870.0,0.66250842]
[1617723897294,0.10725655,57872.0,57870.0,1.22022591]
[1617723897696,0.10725655,57872.0,57871.0,1.16416713]
[1617723897897,0.10725655,57872.0,57871.0,1.27142368]
[1617723900101,0.10725655,57872.0,57871.0,1.47142368]
[1617723901300,0.10725655,57872.0,57871.0,1.27142368]
[1617723907908,0.10725655,57878.0,57871.0,1.27142368]
[1617723908109,0.10725655,57878.0,57875.0,3.3655]
[1617723908607,0.10725655,57878.0,57877.0,0.65840349]
[1617723913916,0.10725655,57878.0,57877.0,0.76566004]
[1617723914416,0.10725655,57878.0,57877.0,0.82702534]
[1617723915919,0.10725655,57878.0,57877.0,0.46789616]
[1617723918125,0.10725655,57878.0,57877.0,0.36063961]
[1617723918326,1.10725655,57878.0,57877.0,0.36063961]
[1617723918525,1.10725655,57878.0,57877.0,0.29927431]
[1617723918925,3.70695655,57878.0,57877.0,0.29927431]
[1617723919126,3.70695655,57878.0,57875.0,0.29916222]
[1617723919127,3.84729655,57878.0,57875.0,0.29916222]
[1617723919527,3.84729655,57878.0,57874.0,0.29924024]
[1617723919828,1.0,57876.0,57874.0,0.29924024]
[1617723920027,1.0,57875.0,57874.0,0.29924024]
[1617723920229,1.0,57875.0,57873.0,0.29932095]
[1617723921830,1.0,57875.0,57873.0,0.27132095]
[1617723922434,1.0,57874.0,57873.0,0.27132095]
[1617723923736,1.0,57874.0,57870.0,0.35921861]
[1617723923937,0.10725655,57878.0,57873.0,0.10725655]
[1617723924136,0.00213185,57880.0,57878.0,1.5]
[1617723924636,0.00213185,57880.0,57879.0,10.412]
[1617723925137,0.3048163,57911.0,57879.0,11.76511637]
[1617723925337,0.3048163,57911.0,57882.0,1.7]
[1617723925537,0.4665,57924.0,57882.0,1.7]
[1617723925736,0.4665,57924.0,57910.0,1.0]
[1617723926039,0.4991,57923.0,57920.0,2.8398]
[1617723926636,0.4991,57923.0,57922.0,1.0]
[1617723926841,0.4991,57923.0,57922.0,1.1265]
[1617723927038,0.4991,57923.0,57922.0,0.1265]
[1617723927240,0.4991,57923.0,57922.0,3.6096]
[1617723927938,0.60635655,57923.0,57922.0,3.71685655]
[1617723930443,0.60635655,57923.0,57922.0,0.23375655]
[1617723930644,0.60635655,57923.0,57922.0,0.10725655]
[1617723930943,0.74240655,57923.0,57904.0,1.0]
[1617723931344,3.4535,57919.0,57903.0,1.43323985]
[1617723931546,3.4535,57919.0,57903.0,0.43323985]
[1617723931747,3.4535,57919.0,57901.0,1.0]
[1617723931945,3.4535,57919.0,57904.0,0.10725655]
[1617723932746,0.4991,57923.0,57904.0,0.10725655]
[1617723932947,0.4991,57923.0,57907.0,1.0]
[1617723933148,0.4991,57923.0,57917.0,2.5213]
[1617723933348,0.4991,57923.0,57917.0,2.6492]
[1617723933651,0.4991,57923.0,57917.0,3.6492]
[1617723933850,0.4991,57923.0,57919.0,1.0]
[1617723934048,0.60635655,57923.0,57922.0,0.10725655]
[1617723935251,0.60635655,57923.0,57922.0,2.83145655]
[1617723936853,0.60635655,57923.0,57922.0,0.10725655]
[1617723937255,0.60635655,57923.0,57904.0,0.43389459]
[1617723937555,3.5773,57916.0,57904.0,0.43389459]
[1617723937855,3.5773,57916.0,57892.0,1.0]
[1617723938056,3.5773,57916.0,57904.0,0.10725655]
[1617723938557,1.5,57916.0,57895.0,0.43474455]
[1617723938760,2.5,57916.0,57892.0,0.43527143]
[1617723938956,2.5322,57902.0,57892.0,0.43527143]
[1617723939457,2.5322,57902.0,57898.0,1.0]
[1617723939657,2.5322,57902.0,57899.0,1.0]
[1617723939658,0.4652,57901.0,57899.0,1.0]
[1617723939958,0.4652,57901.0,57900.0,2.7354]
[1617723940159,0.4652,57901.0,57900.0,3.84265655]
[1617723940557,0.4652,57901.0,57900.0,4.36906521]
[1617723941958,0.4652,57901.0,57900.0,4.56906521]
[1617723942157,0.4641777,57901.0,57900.0,4.56906521]
[1617723942357,0.4641777,57901.0,57900.0,4.36906521]
[1617723943158,0.4641777,57901.0,57900.0,5.86906521]
[1617723944063,0.4641777,57901.0,57900.0,6.36172444]
[1617723944260,0.4641777,57901.0,57900.0,6.56172444]
[1617723944961,0.4641777,57901.0,57900.0,6.36172444]
[1617723945964,0.4641777,57901.0,57900.0,6.56172444]
[1617723946164,0.4641777,57901.0,57900.0,6.36172444]
[1617723946864,0.4641777,57901.0,57900.0,3.62632444]